bitfinex-derivatives/quotes_BTCF0:USTF0_20250718
["timestamp","ask_amount","ask_price","bid_price","bid_amount"]
[1752823149058,1.66341399,120050.0,120040.0,1.24255644]
[1752823150858,1.66341399,120050.0,120040.0,0.8209456]
[1752823151056,1.66341399,120050.0,120040.0,1.24255644]
[1752823151457,1.66341399,120050.0,120040.0,1.24463644]
[1752823151860,1.66341399,120050.0,120040.0,0.8230256]
[1752823152061,1.66341399,120050.0,120040.0,1.24463644]
[1752823152262,1.24174785,120050.0,120040.0,1.24463644]
[1752823152653,1.66335869,120050.0,120040.0,1.24463644]
[1752823152853,1.24174785,120050.0,120040.0,1.24463644]
[1752823153054,1.66335869,120050.0,120040.0,1.24463644]
[1752823155564,1.66335869,120050.0,120040.0,0.8230256]
[1752823155764,1.66335869,120050.0,120040.0,1.24463644]
[1752823156860,1.24174785,120050.0,120040.0,1.24463644]
[1752823157062,0.62658785,120050.0,120040.0,1.24463644]
[1752823157366,1.66319869,120050.0,120040.0,1.24463644]
[1752823157557,1.24158785,120050.0,120040.0,1.24463644]
[1752823158068,1.04819869,120050.0,120040.0,1.24463644]
[1752823158366,1.66315869,120050.0,120040.0,1.24463644]
[1752823159466,1.04819869,120050.0,120040.0,1.24463644]
[1752823159660,1.66315869,120050.0,120040.0,1.24463644]
[1752823160263,1.77315869,120050.0,120040.0,0.23373]
[1752823160768,1.77315869,120050.0,120040.0,0.00208]
[1752823160969,0.4806174,120030.0,120020.0,0.6418208]
[1752823161268,1.49096348,120030.0,120020.0,0.47532]
[1752823161464,1.61626777,120030.0,120020.0,0.6418213]
[1752823161664,1.61626777,120030.0,120020.0,0.7539513]
[1752823161862,1.24131964,120030.0,120020.0,0.7539513]
[1752823162169,1.24131964,120030.0,120020.0,0.7549513]
[1752823162575,1.24131964,120030.0,120020.0,0.7569513]
[1752823163467,1.24131964,120030.0,120020.0,0.5094]
[1752823163772,1.24836373,120030.0,120020.0,0.47832]
[1752823163973,1.24836373,120030.0,120020.0,0.55937]
[1752823164170,1.24836373,120030.0,120020.0,0.7258713]
[1752823164369,1.24836373,120030.0,120020.0,0.59045]
[1752823164675,1.24836373,120030.0,120020.0,0.7569513]
[1752823164874,1.24836373,120030.0,120020.0,0.59045]
[1752823165769,1.24836373,120030.0,120020.0,0.7569513]
[1752823166363,1.24836373,120030.0,120020.0,0.59045]
[1752823166571,1.24836373,120030.0,120020.0,0.19857]
[1752823166766,1.24836373,120030.0,120020.0,0.003]
[1752823167372,1.29836373,120030.0,120020.0,0.003]
[1752823167571,2.03411186,120030.0,120020.0,0.003]
[1752823167962,2.03411186,120030.0,120010.0,0.1166]
[1752823167963,0.4806313,120020.0,120010.0,0.00208]
[1752823168264,1.47113055,120020.0,120010.0,0.00208]
[1752823168465,0.2884252,120010.0,120000.0,0.3658]
[1752823168661,1.60087128,120010.0,120000.0,0.3658]
[1752823168872,1.72514445,120010.0,120000.0,0.532329]
[1752823169270,1.35019632,120010.0,120000.0,0.646849]
[1752823169470,1.35019632,120010.0,120000.0,0.727899]
[1752823169774,1.72514445,120010.0,120000.0,0.727899]
[1752823170169,1.72514445,120010.0,120000.0,0.729899]
[1752823170664,1.72514445,120010.0,120000.0,0.760979]
[1752823171073,1.35019632,120010.0,120000.0,0.760979]
[1752823171374,1.35019632,120010.0,120000.0,0.819949]
[1752823173973,1.24019692,120010.0,120000.0,1.21648713]
[1752823174372,1.24015692,120010.0,120000.0,1.21648713]
[1752823175872,1.24015692,120010.0,120000.0,1.21748713]
[1752823180166,0.62539692,120010.0,120000.0,1.21748713]
[1752823180372,0.85638317,120010.0,120000.0,1.21748713]
[1752823180576,1.02289887,120010.0,120000.0,1.21748713]
[1752823181876,1.16126962,120010.0,120000.0,0.842539]
[1752823182077,1.16126962,120010.0,120000.0,1.21748713]
[1752823183672,0.14503392,120010.0,120000.0,1.21748713]
[1752823183872,0.83424392,120010.0,120000.0,1.21748713]
[1752823184074,1.00075962,120010.0,120000.0,1.21748713]
[1752823184478,1.11836962,120010.0,120000.0,1.21748713]
[1752823185173,0.62567962,120010.0,120000.0,1.21748713]
[1752823188377,0.62567962,120010.0,120000.0,1.19589713]
[1752823188677,0.4817296,120000.0,119990.0,0.00993602]
[1752823188877,0.2897173,119980.0,119970.0,0.806149]
[1752823189070,1.0962373,119980.0,119970.0,0.758399]
[1752823189380,1.27177684,119980.0,119970.0,0.59183]
[1752823189878,0.2897312,119970.0,119960.0,0.9018862]
[1752823190073,0.4817712,119970.0,119960.0,0.9039662]
[1752823190379,0.98167611,119970.0,119960.0,0.5294651]
[1752823190774,1.04955359,119970.0,119960.0,0.6459251]
[1752823191079,1.04955359,119970.0,119960.0,0.1716651]
[1752823191272,1.05672309,119970.0,119960.0,0.1716651]
[1752823191471,1.08672309,119970.0,119960.0,0.003]
[1752823191675,0.481799,119950.0,119940.0,0.8541763]
[1752823191870,1.096279,119950.0,119940.0,1.22912443]
[1752823192078,1.22170904,119950.0,119940.0,1.22912443]
[1752823192878,1.24259455,119950.0,119940.0,1.22912443]
[1752823193181,1.70484718,119950.0,119930.0,0.4461932]
[1752823193483,0.3130229,119940.0,119930.0,0.8438404]
[1752823193683,0.33390841,119940.0,119930.0,1.23122853]
[1752823193985,0.62805874,119940.0,119930.0,1.27689853]
[1752823194783,0.60717323,119940.0,119930.0,1.27689853]
[1752823194978,0.44056033,119940.0,119930.0,1.27689853]
[1752823195283,0.44056033,119940.0,119930.0,1.29848853]
[1752823195483,0.61017353,119940.0,119930.0,1.29848853]
[1752823196176,0.61217353,119940.0,119930.0,1.29848853]
[1752823199186,0.61217353,119940.0,119930.0,0.9235404]
[1752823199382,0.61217353,119940.0,119930.0,1.29848853]
[1752823199582,0.005,119940.0,119930.0,1.29848853]
[1752823199786,0.1716132,119940.0,119930.0,1.29848853]
[1752823200689,0.2433232,119940.0,119930.0,1.29848853]
[1752823201486,0.2866232,119940.0,119930.0,0.9235404]
[1752823201692,0.12001,119940.0,119930.0,1.29848853]
[1752823201892,0.1716132,119940.0,119930.0,1.29848853]
[1752823202305,0.2200732,119940.0,119930.0,1.29848853]
[1752823202497,0.2433232,119940.0,119930.0,1.29848853]
[1752823202699,0.2433232,119940.0,119930.0,0.9235404]
[1752823202900,0.07671,119940.0,119930.0,1.29848853]
[1752823203200,0.005,119940.0,119930.0,1.29848853]
[1752823203507,0.2799433,119960.0,119950.0,0.2936093]
[1752823203700,0.30065533,119960.0,119950.0,1.82463743]
[1752823203900,0.46976186,119960.0,119950.0,1.82463743]
[1752823204304,0.42811546,119960.0,119950.0,1.82463743]
[1752823204506,0.26152856,119960.0,119950.0,2.18543743]
[1752823204799,0.10401203,119960.0,119950.0,2.56038556]
[1752823205002,0.05096203,119960.0,119950.0,2.18543743]
[1752823205206,0.21754743,119960.0,119950.0,2.18543743]
[1752823205502,0.05096203,119960.0,119950.0,2.18543743]
[1752823205709,0.03025,119960.0,119950.0,2.18543743]
[1752823206303,0.14358,120000.0,119990.0,0.2811137]
[1752823206507,0.3585559,120010.0,120000.0,0.4416398]
[1752823206809,0.20363,120010.0,120000.0,1.17738793]
[1752823207405,0.14358,120010.0,120000.0,1.17738793]
[1752823207796,0.14358,120010.0,120000.0,1.18138793]
[1752823208505,0.14358,120010.0,120000.0,1.17738793]
[1752823208704,0.14358,120010.0,120000.0,1.18138793]
[1752823208906,0.14358,120010.0,120000.0,1.24577575]
[1752823209101,0.81831,120020.0,120010.0,0.4416259]
[1752823209302,1.0963821,120020.0,120010.0,1.24176185]
[1752823209509,0.44014034,120020.0,120010.0,1.24176185]
[1752823209709,0.60664244,120020.0,120010.0,0.8024259]
[1752823211209,0.60664244,120020.0,120010.0,0.8084259]
[1752823211413,0.67479948,120020.0,120010.0,0.6956359]
[1752823211609,0.67479948,120020.0,120010.0,0.2049859]
[1752823211911,1.11413543,120020.0,120010.0,0.1725159]
[1752823212704,1.47493543,120020.0,120010.0,0.006]
[1752823212905,0.4584798,120000.0,119990.0,0.7312892]
[1752823213213,1.66035156,120000.0,119990.0,0.6835392]
[1752823213513,1.66027156,120000.0,119990.0,0.6835392]
[1752823214012,1.22093561,120000.0,119990.0,0.8440792]
[1752823214208,0.60661561,120000.0,119990.0,0.8440792]
[1752823214414,1.22093561,120000.0,119990.0,0.8440792]
[1752823214811,1.66027156,120000.0,119990.0,0.6835392]
[1752823215002,1.66027156,120000.0,119990.0,0.6419062]
[1752823215204,1.66027156,120000.0,119990.0,0.5598062]
[1752823216312,1.66227156,120000.0,119990.0,0.5598062]
[1752823216616,1.66227156,120000.0,119990.0,0.6896562]
[1752823217315,1.66227156,120000.0,119990.0,0.5273362]
[1752823217817,1.22293561,120000.0,119990.0,0.5598062]
[1752823218013,1.66227156,120000.0,119990.0,0.6896562]
[1752823218213,1.68151489,120000.0,119990.0,0.6896562]
[1752823218613,1.68151489,120000.0,119990.0,0.3608]
[1752823218814,0.2899536,119990.0,119980.0,0.47035]
[1752823219012,0.94187288,119990.0,119980.0,0.03185]
[1752823219317,0.4833075,119980.0,119970.0,0.7951501]
[1752823219519,1.53696345,119980.0,119970.0,0.51579]
[1752823219717,1.66260881,119980.0,119970.0,0.6823614]
[1752823220018,1.66260881,119980.0,119970.0,0.6369214]
[1752823220719,1.22327286,119980.0,119970.0,0.5592214]
[1752823220912,1.68185157,119980.0,119970.0,0.39265]
[1752823221311,0.2899814,119970.0,119960.0,0.51579]
[1752823221516,0.92265735,119970.0,119960.0,0.6369353]
[1752823221715,1.04732021,119970.0,119960.0,0.47035]
[1752823222115,0.60798426,119970.0,119960.0,0.6369352]
[1752823222317,0.60798426,119970.0,119960.0,0.6823752]
[1752823222921,0.60798426,119970.0,119960.0,0.6844552]
[1752823223421,0.61198426,119970.0,119960.0,0.6844552]
[1752823224824,0.61198426,119970.0,119960.0,0.7972452]
[1752823225324,0.63123306,119970.0,119960.0,0.7972452]
[1752823225821,0.63123306,119970.0,119960.0,0.6844552]
[1752823227125,1.18056901,119970.0,119960.0,0.00208]
[1752823227424,1.18056901,119970.0,119940.0,0.51903]
[1752823227425,0.4833491,119950.0,119940.0,0.198463]
[1752823227614,1.0986291,119950.0,119940.0,0.198463]
[1752823227920,1.24264404,119950.0,119940.0,0.682403]
[1752823228322,1.24264404,119950.0,119940.0,0.276163]
[1752823228718,1.24264404,119950.0,119940.0,0.321603]
[1752823230419,1.24264404,119950.0,119940.0,0.32171988]
[1752823230827,1.24264404,119950.0,119940.0,1.12185583]
[1752823231022,0.54752404,119950.0,119940.0,1.23464583]
[1752823231218,1.01615536,119950.0,119940.0,1.23464583]
[1752823231418,0.37657536,119950.0,119940.0,1.85044583]
[1752823231824,0.58223536,119950.0,119940.0,1.85044583]
[1752823232128,0.69332536,119950.0,119940.0,1.85048583]
[1752823232323,0.69332536,119950.0,119940.0,0.47146688]
[1752823232526,0.69332536,119950.0,119940.0,0.39376688]
[1752823232829,0.69326448,119950.0,119940.0,0.39376688]
[1752823233626,0.69326448,119950.0,119940.0,0.36191688]
[1752823233828,0.69326448,119950.0,119940.0,0.00111688]
[1752823235024,0.80326448,119950.0,119940.0,0.00111688]
[1752823235430,1.60340043,119950.0,119940.0,0.00111688]
[1752823237737,1.16406448,119950.0,119940.0,0.00111688]
[1752823238031,1.60340043,119950.0,119940.0,0.00111688]
[1752823239231,1.16406448,119950.0,119940.0,0.00111688]
[1752823239430,1.60340043,119950.0,119940.0,0.00111688]
[1752823242225,0.458583,119940.0,119930.0,0.00208]
[1752823242431,2.02728918,119940.0,119930.0,0.00208]
[1752823242635,0.2900369,119930.0,119920.0,0.5592795]
[1752823242934,0.60868379,119930.0,119920.0,0.5592795]
[1752823243335,0.62779225,119930.0,119920.0,0.1666295]
[1752823243634,0.4833907,119920.0,119910.0,0.72120157]
[1752823243834,1.0979907,119920.0,119910.0,0.72120157]
[1752823244029,1.05634811,119920.0,119910.0,0.64558157]
[1752823244236,1.24991049,119920.0,119910.0,0.64558157]
[1752823244632,1.08326979,119920.0,119910.0,0.76872157]
[1752823244833,1.08326979,119920.0,119910.0,0.88122157]
[1752823245338,1.05942811,119920.0,119910.0,0.88122157]
[1752823245936,1.24549468,119920.0,119910.0,0.68510627]
[1752823247034,1.22906881,119920.0,119910.0,0.68510627]
[1752823247234,1.24650357,119920.0,119910.0,0.56018497]
[1752823247834,1.24650357,119920.0,119910.0,0.63788497]
[1752823248037,1.24650357,119920.0,119910.0,0.68511497]
[1752823248336,1.24550357,119920.0,119910.0,0.68511497]
[1752823248539,1.24850357,119920.0,119910.0,0.51846037]
[1752823249038,1.24850357,119920.0,119910.0,0.79790497]
[1752823249540,1.24650357,119920.0,119910.0,0.79790497]
[1752823250039,1.24550357,119920.0,119910.0,0.79790497]
[1752823250333,0.47632357,119920.0,119910.0,1.17462456]
[1752823250540,0.93175357,119920.0,119910.0,1.17462456]
[1752823250741,1.04595936,119920.0,119910.0,1.17462456]
[1752823250937,1.07049936,119920.0,119910.0,1.17462456]
[1752823251134,0.51535936,119920.0,119910.0,1.17462456]
[1752823251334,1.13003936,119920.0,119910.0,1.17462456]
[1752823251629,1.12803936,119920.0,119910.0,1.17462456]
[1752823252737,1.12505044,119920.0,119910.0,1.17462456]
[1752823253040,1.12605044,119920.0,119910.0,1.17462456]
[1752823253740,1.10658881,119920.0,119910.0,1.17462456]
[1752823254036,0.12587811,119920.0,119910.0,1.17462456]
[1752823254238,0.3962129,119940.0,119930.0,0.4358768]
[1752823254543,0.44190028,119940.0,119930.0,1.53307639]
[1752823255437,0.27528738,119940.0,119930.0,1.53307639]
[1752823255840,0.12473738,119940.0,119930.0,1.53307639]
[1752823256040,0.29135028,119940.0,119930.0,1.53307639]
[1752823256241,0.29135028,119940.0,119930.0,1.53407639]
[1752823256541,0.12473738,119940.0,119930.0,1.53407639]
[1752823256843,0.29135038,119940.0,119930.0,1.53407639]
[1752823257042,0.29135038,119940.0,119930.0,1.59831703]
[1752823257338,0.34041392,119950.0,119940.0,0.166613]
[1752823257544,0.29876102,119950.0,119940.0,1.85118323]
[1752823257736,0.42348175,119950.0,119940.0,1.23650323]
[1752823257939,0.42348175,119950.0,119940.0,1.85110323]
[1752823258241,0.53767175,119950.0,119940.0,1.85110323]
[1752823259345,0.06596132,119950.0,119940.0,1.85110323]
[1752823259539,0.436339,119960.0,119950.0,0.1665991]
[1752823259735,0.3469706,119960.0,119950.0,1.23648933]
[1752823259936,0.47165539,119960.0,119950.0,1.23648933]
[1752823260146,0.49506496,119960.0,119950.0,1.23648933]
[1752823260446,0.54278496,119960.0,119950.0,1.23856933]
[1752823260640,0.55460496,119960.0,119950.0,1.23856933]
[1752823261040,0.55660496,119960.0,119950.0,1.23856933]
[1752823261344,0.55860496,119960.0,119950.0,1.23856933]
[1752823261539,0.58993496,119960.0,119950.0,1.23856933]
[1752823261746,0.66667496,119960.0,119950.0,1.4132891]
[1752823261944,0.66667496,119960.0,119950.0,1.3004991]
[1752823262543,0.66667496,119960.0,119950.0,1.4132891]
[1752823262742,0.66667496,119960.0,119950.0,1.3004991]
[1752823262943,0.66667496,119960.0,119950.0,1.3004591]
[1752823263446,0.66667496,119960.0,119950.0,1.4132491]
[1752823264447,0.66667496,119960.0,119950.0,1.4131691]
[1752823270650,0.66667496,119960.0,119950.0,0.6086291]
[1752823270850,0.66667496,119960.0,119930.0,0.6065673]
[1752823270851,0.472953,119940.0,119930.0,0.6065673]
[1752823271252,0.5973829,119940.0,119930.0,0.43995]
[1752823271650,0.61679027,119940.0,119930.0,0.43995]
[1752823272350,0.61679027,119940.0,119930.0,0.6075769]
[1752823272550,0.61679027,119940.0,119930.0,0.6848869]
[1752823273251,0.61679027,119940.0,119930.0,0.51826]
[1752823274253,0.61679027,119940.0,119930.0,0.47134]
[1752823274655,0.61679027,119940.0,119930.0,0.6848868]
[1752823276352,1.23103027,119940.0,119930.0,0.7976768]
[1752823279455,1.23103027,119940.0,119930.0,0.6848868]
[1752823280052,1.60647962,119940.0,119930.0,0.6848868]
[1752823280352,0.99223962,119940.0,119930.0,0.6848868]
[1752823280656,0.61679027,119940.0,119930.0,0.6848868]
[1752823281458,0.61679027,119940.0,119930.0,0.7976768]
[1752823281753,0.61693093,119940.0,119930.0,0.7976768]
[1752823284353,0.61693093,119940.0,119930.0,0.6848868]
[1752823284857,0.99238028,119940.0,119930.0,0.6848868]
[1752823285056,1.35318028,119940.0,119930.0,0.03323]
[1752823285358,1.46318028,119940.0,119930.0,0.03323]
[1752823286853,1.46318028,119940.0,119930.0,0.001]
[1752823287855,1.08773093,119940.0,119930.0,0.001]
[1752823288057,1.46318028,119940.0,119930.0,0.001]
[1752823294562,2.07706028,119940.0,119930.0,0.00308]
[1752823295460,1.46318028,119940.0,119930.0,0.1697068]
[1752823295666,2.07702028,119940.0,119930.0,0.00308]
[1752823296465,1.70153093,119940.0,119930.0,0.3252968]
[1752823296764,2.07698028,119940.0,119930.0,0.15867]
[1752823297164,2.07698028,119940.0,119930.0,0.11274]
[1752823298066,2.07698028,119940.0,119930.0,0.2793668]
[1752823298572,2.07694028,119940.0,119930.0,0.2793668]
[1752823299471,1.70149093,119940.0,119930.0,0.2793668]
[1752823299672,2.07694028,119940.0,119930.0,0.11274]
[1752823300375,2.07694028,119940.0,119930.0,0.2793668]
[1752823301573,1.23061093,119940.0,119930.0,0.6860968]
[1752823301772,1.23061093,119940.0,119930.0,0.7988868]
[1752823303274,1.23061093,119940.0,119930.0,0.7968068]
[1752823304074,1.60606028,119940.0,119930.0,0.6840168]
[1752823304276,1.23061093,119940.0,119930.0,0.6840168]
[1752823304574,1.23061093,119940.0,119930.0,0.6860968]
[1752823304875,1.96686028,119940.0,119930.0,0.11274]
[1752823305075,1.60606028,119940.0,119930.0,0.11274]
[1752823305374,1.60606028,119940.0,119930.0,0.03494]
[1752823305876,1.60606028,119940.0,119930.0,0.00308]
[1752823309676,1.34061093,119940.0,119930.0,0.00308]
[1752823310077,1.71606028,119940.0,119930.0,0.00308]
[1752823310768,1.34061093,119940.0,119930.0,0.00308]
[1752823310975,1.71606028,119940.0,119930.0,0.00308]
[1752823311474,1.34061093,119940.0,119930.0,0.00308]
[1752823311974,1.71606028,119940.0,119930.0,0.00308]
[1752823312878,1.71606028,119940.0,119930.0,0.1697081]
[1752823313377,1.71606028,119940.0,119930.0,0.00308]
[1752823313573,0.2560517,119920.0,119910.0,0.00088037]
[1752823313773,1.34157908,119920.0,119910.0,0.00088037]
[1752823313972,2.08019073,119920.0,119910.0,0.00088037]
[1752823314673,2.08019073,119920.0,119910.0,0.00288037]
[1752823315079,2.08019073,119920.0,119910.0,0.00588037]
[1752823316474,0.4512456,119910.0,119900.0,0.00708]
[1752823316780,0.99577901,119910.0,119900.0,0.00708]
[1752823316981,0.99577901,119910.0,119900.0,0.005]
[1752823317576,0.99577901,119910.0,119900.0,0.011]
[1752823321384,1.23340966,119910.0,119900.0,0.011]
[1752823321584,1.2411572,119910.0,119900.0,0.011]
[1752823321976,1.61660655,119910.0,119900.0,0.011]
[1752823322385,1.73660655,119910.0,119900.0,0.011]
[1752823322785,1.3611572,119910.0,119900.0,0.011]
[1752823323983,1.3610772,119910.0,119900.0,0.011]
[1752823324683,0.7480772,119910.0,119900.0,0.05308]
[1752823324986,1.2410372,119910.0,119900.0,1.08414885]
[1752823325186,1.2410372,119910.0,119900.0,0.91747935]
[1752823325383,1.2410372,119910.0,119900.0,1.08414885]
[1752823325582,1.2410372,119910.0,119900.0,0.91747935]
[1752823325884,1.2410372,119910.0,119900.0,0.86825935]
[1752823326084,1.2410372,119910.0,119900.0,0.49543935]
[1752823326390,1.2410372,119910.0,119900.0,1.07212895]
[1752823326590,0.4614216,119910.0,119900.0,1.18491895]
[1752823326891,0.62032966,119910.0,119900.0,1.19387895]
[1752823327188,0.62032966,119910.0,119900.0,1.18491895]
[1752823328381,0.32868803,119910.0,119900.0,1.18491895]
[1752823328585,0.01954803,119910.0,119900.0,1.19387895]
[1752823328783,0.3555033,119920.0,119910.0,0.4586372]
[1752823328988,0.37560074,119920.0,119910.0,1.80772655]
[1752823329192,0.50025859,119920.0,119910.0,1.80772655]
[1752823329390,0.51231859,119920.0,119910.0,1.80772655]
[1752823329592,0.62053859,119920.0,119910.0,1.4322772]
[1752823329889,0.62053859,119920.0,119910.0,1.80772655]
[1752823330283,0.62053859,119920.0,119910.0,1.80872655]
[1752823330884,0.62053859,119920.0,119910.0,1.79976655]
[1752823331692,0.62053859,119920.0,119910.0,1.80076655]
[1752823332591,0.45389529,119920.0,119910.0,1.80076655]
[1752823333092,0.45389529,119920.0,119910.0,1.80972655]
[1752823333293,0.62053939,119920.0,119910.0,1.80972655]
[1752823333594,0.60044195,119920.0,119910.0,1.80068655]
[1752823334893,0.60043965,119920.0,119910.0,1.64298935]
[1752823335294,0.60043965,119920.0,119910.0,1.26754]
[1752823335593,0.60043965,119920.0,119910.0,1.63398935]
[1752823336595,0.62021691,119920.0,119910.0,1.63398935]
[1752823338191,0.62021691,119920.0,119910.0,1.02126935]
[1752823338396,0.62021691,119920.0,119910.0,1.63394935]
[1752823338797,0.62021691,119920.0,119910.0,1.2585]
[1752823338998,0.62021691,119920.0,119910.0,1.63390935]
[1752823339699,0.62021691,119920.0,119910.0,1.25846]
[1752823339902,0.60043965,119920.0,119910.0,1.03022935]
[1752823340200,0.60043965,119920.0,119910.0,1.26742]
[1752823340401,0.60043965,119920.0,119910.0,1.03022935]
[1752823340597,0.62021583,119920.0,119910.0,1.64286935]
[1752823341196,0.62021583,119920.0,119910.0,1.03022935]
[1752823341502,0.62021583,119920.0,119910.0,1.64282935]
[1752823344400,0.62021583,119920.0,119910.0,1.26738]
[1752823344801,0.62021583,119920.0,119910.0,1.03022935]
[1752823345002,0.3608076,119930.0,119910.0,1.80957335]
[1752823345204,0.46390163,119930.0,119920.0,1.02806935]
[1752823345405,0.58885826,119930.0,119920.0,1.02806935]
[1752823346005,0.71070826,119930.0,119920.0,1.02806935]
[1752823347304,0.71070826,119930.0,119920.0,1.03014935]
[1752823347905,0.71070826,119930.0,119920.0,0.66934935]
[1752823348206,0.71070826,119930.0,119920.0,1.14543]
[1752823348504,0.71070826,119930.0,119920.0,1.52087935]
[1752823348703,0.71070826,119930.0,119920.0,0.53295]
[1752823348905,1.08615761,119930.0,119920.0,0.39489]
[1752823349106,1.08615761,119930.0,119920.0,1.00737]
[1752823349305,1.69863761,119930.0,119920.0,0.00208]
[1752823350309,1.32318826,119930.0,119920.0,0.00208]
[1752823351601,0.58967966,119930.0,119920.0,1.02118935]
[1752823351900,0.66904966,119930.0,119920.0,1.02118935]
[1752823353003,0.66904966,119930.0,119920.0,0.64574]
[1752823353207,0.66904966,119930.0,119920.0,1.02118935]
[1752823353709,0.66904966,119930.0,119920.0,0.90839935]
[1752823353909,0.66904966,119930.0,119920.0,1.52079935]
[1752823355110,0.66904966,119930.0,119920.0,1.38269935]
[1752823355313,0.66904966,119930.0,119920.0,0.39489]
[1752823355609,0.66904966,119930.0,119920.0,1.00725]
[1752823356011,0.66904966,119930.0,119920.0,1.42792935]
[1752823357110,0.66904966,119930.0,119920.0,0.39489]
[1752823357312,0.66904966,119930.0,119920.0,1.00725]
[1752823358011,0.66904966,119930.0,119920.0,0.39489]
[1752823358414,1.04449901,119930.0,119920.0,0.00208]
[1752823359114,0.66904966,119930.0,119920.0,0.00208]
[1752823362215,0.66904966,119930.0,119920.0,0.03409]
[1752823362607,1.02984966,119930.0,119920.0,0.03409]
[1752823364014,0.66904966,119930.0,119920.0,0.03409]
[1752823364215,1.02984966,119930.0,119920.0,0.03409]
[1752823364616,0.66904966,119930.0,119920.0,0.03409]
[1752823366813,1.02984966,119930.0,119920.0,0.03409]
[1752823367018,1.04449901,119930.0,119920.0,0.00208]
[1752823367221,1.40529901,119930.0,119920.0,0.00208]
[1752823368721,1.02984966,119930.0,119920.0,0.00208]
[1752823369115,0.66904966,119930.0,119920.0,0.00208]
[1752823369517,0.66904966,119930.0,119920.0,0.03409]
[1752823369918,1.02984966,119930.0,119920.0,0.03409]
[1752823370222,0.66904966,119930.0,119920.0,0.03409]
[1752823371520,0.66904966,119930.0,119920.0,0.00208]
[1752823372724,1.02984966,119930.0,119920.0,0.00208]
[1752823373431,1.51529901,119930.0,119920.0,0.00208]
[1752823375435,1.13984966,119930.0,119920.0,0.00208]
[1752823375630,0.77904966,119930.0,119920.0,0.00208]
[1752823376037,1.15449901,119930.0,119920.0,0.00208]
[1752823376236,1.51529901,119930.0,119920.0,0.00208]
[1752823377040,1.15449901,119930.0,119920.0,0.00208]
[1752823377540,1.51529901,119930.0,119920.0,0.00208]
[1752823378834,1.13984966,119930.0,119920.0,0.00208]
[1752823379033,1.51529901,119930.0,119920.0,0.00208]
[1752823380842,1.13984966,119930.0,119920.0,0.00208]
[1752823381044,1.51529901,119930.0,119920.0,0.00208]
[1752823381346,0.77904966,119930.0,119920.0,0.00208]
[1752823381541,0.66904966,119930.0,119920.0,0.16801]
[1752823381841,1.28072966,119930.0,119920.0,1.01704935]
[1752823382545,1.28072966,119930.0,119920.0,0.6416]
[1752823382741,1.28072966,119930.0,119920.0,1.01704935]
[1752823383742,1.28072966,119930.0,119920.0,0.6416]
[1752823383946,1.28072966,119930.0,119920.0,1.01704935]
[1752823384140,1.28072966,119930.0,119920.0,0.6416]
[1752823384946,1.28072966,119930.0,119920.0,1.01704935]
[1752823386147,1.28072966,119930.0,119920.0,0.6416]
[1752823386348,1.28072966,119930.0,119920.0,1.01704935]
[1752823386553,1.28072966,119930.0,119920.0,0.6416]
[1752823386751,1.28072966,119930.0,119920.0,1.01704935]
[1752823387147,1.28072966,119930.0,119920.0,0.90425935]
[1752823388747,1.28072966,119930.0,119920.0,0.52881]
[1752823389151,1.28072966,119930.0,119920.0,0.90425935]
[1752823390052,1.28072966,119930.0,119920.0,0.47169]
[1752823391142,1.65617901,119930.0,119920.0,0.39563]
[1752823391347,1.65617901,119930.0,119920.0,0.36288]
[1752823391550,2.01697901,119930.0,119920.0,0.00208]
[1752823391745,1.65617901,119930.0,119920.0,0.00208]
[1752823392756,2.01697901,119930.0,119920.0,0.00208]
[1752823393254,1.65617901,119930.0,119920.0,0.00208]
[1752823393458,1.28072966,119930.0,119920.0,0.03483]
[1752823394554,1.28072966,119930.0,119920.0,0.00208]
[1752823395249,1.65617901,119930.0,119920.0,0.00208]
[1752823397356,1.28072966,119930.0,119920.0,0.00208]
[1752823398755,1.65617901,119930.0,119920.0,0.00208]
[1752823398955,1.26095263,119930.0,119920.0,0.00208]
[1752823399157,1.63640198,119930.0,119920.0,0.00208]
[1752823400754,1.99720198,119930.0,119920.0,0.00208]
[1752823400955,1.63640198,119930.0,119920.0,0.00208]
[1752823401255,1.99720198,119930.0,119920.0,0.00208]
[1752823401758,1.63640198,119930.0,119920.0,0.00208]
[1752823403060,1.99720198,119930.0,119920.0,0.00208]
[1752823405566,1.62175263,119930.0,119920.0,0.00208]
[1752823405760,1.26095263,119930.0,119920.0,0.00208]
[1752823405965,1.99720198,119930.0,119920.0,0.00208]
[1752823407167,1.62175263,119930.0,119920.0,0.00208]
[1752823407361,1.26095263,119930.0,119920.0,0.00208]
[1752823408069,1.99720198,119930.0,119920.0,0.00208]
[1752823412770,1.62175263,119930.0,119920.0,0.00208]
[1752823412963,1.99720198,119930.0,119920.0,0.00208]
[1752823414367,2.00720198,119930.0,119920.0,0.00208]
[1752823414767,1.63175263,119930.0,119920.0,0.00208]
[1752823414968,2.00720198,119930.0,119920.0,0.00208]
[1752823416075,1.63175263,119930.0,119920.0,0.00208]
[1752823416371,1.27007263,119930.0,119920.0,0.37752935]
[1752823416571,1.27007263,119930.0,119920.0,0.41005935]
[1752823416771,1.26007263,119930.0,119920.0,0.41005935]
[1752823417172,1.26007263,119930.0,119920.0,0.03461]
[1752823418174,1.63552198,119930.0,119920.0,0.00208]
[1752823418576,1.26007263,119930.0,119920.0,0.00208]
[1752823418772,1.02472198,119930.0,119920.0,0.00208]
[1752823418973,1.63548198,119930.0,119920.0,0.00208]
[1752823420675,1.02472198,119930.0,119920.0,0.00208]
[1752823420871,1.63540198,119930.0,119920.0,0.00208]
[1752823421278,1.99620198,119930.0,119920.0,0.00208]
[1752823427281,1.63540198,119930.0,119920.0,0.00208]
[1752823427481,1.99620198,119930.0,119920.0,0.00208]
[1752823427882,1.63540198,119930.0,119920.0,0.00208]
[1752823428182,1.99620198,119930.0,119920.0,0.00208]
[1752823430385,1.62075263,119930.0,119920.0,0.00208]
[1752823432086,1.99620198,119930.0,119920.0,0.00208]
[1752823432383,1.63540198,119930.0,119920.0,0.00208]
[1752823433988,1.99620198,119930.0,119920.0,0.00208]
[1752823434289,1.25995263,119930.0,119920.0,0.00208]
[1752823435081,1.68244904,119930.0,119920.0,0.42457641]
[1752823437491,1.68244904,119930.0,119920.0,0.00208]
[1752823437790,1.68244904,119930.0,119920.0,0.42457641]
[1752823438292,1.68200904,119930.0,119920.0,0.42457641]
[1752823438993,1.68200904,119930.0,119920.0,0.00208]
[1752823439194,1.68200904,119930.0,119920.0,0.42457641]
[1752823439695,1.68200904,119930.0,119920.0,0.00208]
[1752823439993,1.68200904,119930.0,119920.0,0.42457641]
[1752823440194,1.25951263,119930.0,119920.0,0.42457641]
[1752823440395,1.68200904,119930.0,119920.0,0.42457641]
[1752823440595,1.25951263,119930.0,119920.0,0.42457641]
[1752823440895,1.68200904,119930.0,119920.0,0.42457641]